[Event "Romanian Team Blitz Open 2022"]
[Site "Sebes"]
[Date "2022.12.04"]
[Round "1.26"]
[White "Tatar, Marius Lucian"]
[Black "Cosma, Ioan"]
[Result "0-1"]
[ECO "B31"]
[WhiteElo "1405"]
[BlackElo "2368"]
[Annotator "TA"]
[PlyCount "122"]
[EventDate "2022.12.04"]
[EventType "blitz"]
[EventCountry "ROU"]
[SourceTitle "playchess.com"]
[Source "ChessBase"]
[SourceQuality "1"]
[TimeControl "180+2"]

{[%evp 23,121,-12,0,-14,0,-22,-25,-21,-13,-18,-10,-16,0,-27,-32,-46,0,0,59,0,0,0,0,0,0,0,0,0,0,0,0,0,0,0,0,-10,0,0,0,0,0,0,0,0,0,0,0,0,0,0,0,-325,-11,-428,-415,-742,-684,-677,-565,-1117,-1102,-1259,-1129,-1000,-719,-886,-479,-12831,-12831,-12829,-2405,-12840,-12840,-12845,-12841,-12841,-12842,-12842,-12843,-12843,-12843,-12848,-12849,-29993,-29994,-29994,-29994,-29994,-27999,-27999,-27999,-27999,-27999,-27999,-27999,-27999,-27999,-27999,-27999,-29999]} 1. e4 {[%emt 0:00:03]} c5 {[%emt 0:00:01]} 2. Nf3 {[%emt 0:00:01]} Nc6 {[%emt 0:00:01]} 3. Bb5 {[%emt 0:00:02]} g6 {[%emt 0:00:01]} 4. O-O {[%emt 0:00:03]} Bg7 {[%emt 0:00:01]} 5. Re1 {[%emt 0:00:03]} Nf6 {[%emt 0:00:02]} 6. c3 {[%emt 0:00:03]} O-O {[%emt 0:00:02]} 7. e5 {[%emt 0:00:04]} Nd5 {[%emt 0:00:01]} 8. d4 {[%emt 0:00:02]} cxd4 {[%emt 0:00:06]} 9. cxd4 {[%emt 0:00:02]} d6 {[%emt 0:00:02]} 10. Bxc6 {[%emt 0:00:12]} bxc6 {[%emt 0:00:01]} 11. Nc3 {[%emt 0:00:10]} Nxc3 {[%emt 0:00:09]} 12. bxc3 {[%emt 0:00:02]} Bg4 {[%emt 0:00:02]} 13. Bf4 {[%emt 0:00:06] [#] B31: Sicilian: 2...Nc6 3 Bb5 g6.} dxe5 $146 {[%emt 0:00:10]} ({Predecessor:} 13... d5 14. h3 Bf5 15. Qa4 Qc7 16. g4 Bd3 17. Bg3 e6 18. Red1 Bb5 19. Qb4 Rfb8 {0-1 (46) Pein,J (2239)-Quizon,D (2319) Chess.com INT 2021}) 14. dxe5 {[%emt 0:00:06]} Qa5 {[%emt 0:00:18]} 15. h3 {[%emt 0:00:15] Black has an edge.} Rad8 {[%emt 0:00:05]} 16. Qe2 {[%emt 0:00:12]} Bxf3 {[%emt 0:00:07]} 17. Qxf3 {[%emt 0:00:01]} Qd5 {[%emt 0:00:16]} 18. Red1 {[%emt 0:00:20]} Qxf3 {[%emt 0:00:11]} 19. gxf3 {[%emt 0:00:02]} e6 {[%emt 0:00:07]} (19... Rd5 $15) 20. Rd6 $11 {[%emt 0:00:09]} f6 {[%emt 0:00:38]} (20... Rxd6 $11 21. exd6 Bxc3) 21. exf6 {[%emt 0:00:25]} (21. Rad1 $14 Rb8 22. exf6 Rxf6 23. Be3) 21... Bxf6 {[%emt 0:00:06]} 22. Rad1 {[%emt 0:00:18]} Rxd6 {[%emt 0:00:04]} 23. Rxd6 {[%emt 0:00:08]} Be7 {[%emt 0:00:10]} 24. Rxe6 {[%emt 0:00:06] And now Be3 would win.} Rxf4 {[%emt 0:00:14]} 25. Rxe7 {[%emt 0:00:03][%mdl 4096] Endgame KR-KR} a5 {[%emt 0:00:02]} 26. Re3 {[%emt 0:00:08]} Ra4 {[%emt 0:00:03]} 27. Re2 {[%emt 0:00:10]} Kf7 {[%emt 0:00:04]} 28. Kg2 {[%emt 0:00:01]} Kf6 {[%emt 0:00:01]} 29. Kg3 {[%emt 0:00:02]} Rc4 {[%emt 0:00:05]} 30. Re3 {[%emt 0:00:04]} g5 {[%emt 0:00:04]} 31. Kg2 {[%emt 0:00:11]} h5 {[%emt 0:00:01]} 32. Kg3 {[%emt 0:00:01]} Kf5 {[%emt 0:00:02]} 33. Kg2 {[%emt 0:00:06]} h4 {[%emt 0:00:00]} 34. Rd3 {[%emt 0:00:03]} Ra4 {[%emt 0:00:07]} 35. Rd2 {[%emt 0:00:02]} Ra3 {[%emt 0:00:03]} 36. Rc2 {[%emt 0:00:01]} Ke5 {[%emt 0:00:04]} 37. Kg1 $2 {[%emt 0:00:05][%mdl 8192] [#]} (37. Re2+ $11 {and White stays safe.} Kd5 38. Re4) 37... c5 $2 {[%emt 0:00:03]} (37... Kd5 $1 $19 {[%cal Rd5c4]} 38. Kg2 Kc4) 38. Kg2 $2 {[%emt 0:00:01][%mdl 8192] [#] Loses the game.} (38. Kf1 $1 $11 {and White is okay.}) 38... Kd5 $1 $19 {[%emt 0:00:01]} 39. c4+ {[%emt 0:00:04]} (39. Re2 $142 Rxc3 40. Re3) 39... Kd4 {[%emt 0:00:02]} 40. Re2 {[%emt 0:00:12]} Kxc4 {[%emt 0:00:03]} 41. Re5 {[%emt 0:00:01]} Rxa2 {[%emt 0:00:02]} 42. Rxg5 {[%emt 0:00:01]} a4 {[%emt 0:00:01]} 43. f4 {[%emt 0:00:01]} a3 {[%emt 0:00:05] Hoping for ...Rb2.} 44. f5 {[%emt 0:00:01]} Rb2 {[%emt 0:00:04] White must now prevent ...a2.} 45. f6 {[%emt 0:00:03]} (45. Rg4+ $142 Kc3 46. Ra4) 45... Rb6 {[%emt 0:00:09]} 46. Rg4+ {[%emt 0:00:07]} Kb3 {[%emt 0:00:04]} 47. Rf4 {[%emt 0:00:05]} a2 {[%emt 0:00:02]} 48. f7 {[%emt 0:00:02]} Rb8 {[%emt 0:00:01]} (48... a1=B $2 49. f8=Q (49. f8=B c4 $17) 49... Bd4 50. Qf5 $18) 49. Rf3+ {[%emt 0:00:01]} Kb2 {[%emt 0:00:02]} 50. f8=Q {[%emt 0:00:03]} Rxf8 {[%emt 0:00:01]} (50... a1=B {gets mated.} 51. Qxb8+ Kc1 52. Qb3 c4 53. Qxc4+ Kb1 54. Rb3+ Bb2 55. Qc3 Ka2 56. Qxb2#) 51. Rxf8 {[%emt 0:00:01]} a1=Q {[%emt 0:00:01] KQ-KR} (51... a1=B $2 52. Rc8 $18) 52. Rf3 {[%emt 0:00:02]} Qa8 {[%emt 0:00:03] ( -> ...c4)} 53. Kh2 {[%emt 0:00:03] Against c4} Qxf3 {[%emt 0:00:01] Black mates.} 54. Kg1 {[%emt 0:00:01]} Kc2 {[%emt 0:00:02]} 55. Kh2 {[%emt 0:00:02]} Qxf2+ {[%emt 0:00:01]} 56. Kh1 {[%emt 0:00:01]} Qe2 {[%emt 0:00:01]} 57. Kg1 {[%emt 0:00:01]} Kd3 {[%emt 0:00:01]} 58. Kh1 {[%emt 0:00:01]} c4 {[%emt 0:00:00]} 59. Kg1 {[%emt 0:00:01]} c3 {[%emt 0:00:01]} 60. Kh1 {[%emt 0:00:01]} c2 {[%emt 0:00:00]} 61. Kg1 {[%emt 0:00:01]} c1=R# {[%emt 0:00:02] Weighted Error Value: White=1.04/Black=0.38} 0-1

[Event "Romanian Team Blitz Open 2022"]
[Site "Sebes"]
[Date "2022.12.04"]
[Round "1.28"]
[White "Olariu-Chilut, Sofia"]
[Black "Bulau, Andrei-Cristian"]
[Result "0-1"]
[ECO "B21"]
[WhiteElo "1065"]
[BlackElo "2154"]
[Annotator "TA"]
[PlyCount "56"]
[EventDate "2022.12.04"]
[EventType "blitz"]
[EventCountry "ROU"]
[SourceTitle "playchess.com"]
[Source "ChessBase"]
[SourceQuality "1"]
[TimeControl "180+2"]

{[%evp 9,55,-45,-42,-47,-41,-49,-49,-67,-68,-64,-69,-163,-101,-99,-77,-87,-89,-103,-81,-133,-128,-153,-143,-143,-153,-147,-141,-224,-219,-259,-259,-265,-266,-308,-309,-321,-302,-908,-897,-29975,-29976,-29974,-29975,-29975,-29971,-29971,-29971,-29999]} 1. d4 {[%emt 0:00:02]} c5 {[%emt 0:00:02]} 2. e4 {[%emt 0:00:01]} cxd4 {[%emt 0:00:02]} 3. c3 {[%emt 0:00:01]} Nf6 {[%emt 0:00:01]} 4. Bd3 {[%emt 0:00:08]} dxc3 {[%emt 0:00:06]} 5. Nxc3 {[%emt 0:00:01]} Nc6 {[%emt 0:00:01]} 6. Nf3 {[%emt 0:00:02] B21: Sicilian: 2 f4 and Morra Gambit.} d6 {[%emt 0:00:00] Against e5} 7. O-O {[%emt 0:00:05]} g6 {[%emt 0:00:02]} 8. Bf4 {[%emt 0:00:06] Black is slightly better.} Bg7 {[%emt 0:00:01] [#]} 9. Re1 $146 {[%emt 0:00:06]} ({Predecessor:} 9. h3 O-O 10. Qe2 Bd7 11. Rfd1 Rc8 12. Rac1 a6 13. Bb1 b5 14. a3 Qb6 15. e5 dxe5 16. Nxe5 Nxe5 17. Bxe5 Bc6 18. Bd4 Qb7 19. f3 e6 {½-½ (19) Sanchez,S (1755)-Alvarado Quintero,L (1323) Sopo 2021}) 9... O-O {[%emt 0:00:03]} 10. e5 {[%emt 0:00:10]} (10. h3 $15) 10... dxe5 {[%emt 0:00:01]} (10... Nh5 $19 11. Bg5 h6) 11. Nxe5 $17 {[%emt 0:00:03]} Nxe5 {[%emt 0:00:05]} 12. Bxe5 {[%emt 0:00:03]} Be6 {[%emt 0:03:02] Against Bc4} 13. Bb5 {[%emt 0:00:21]} a6 {[%emt 0:00:00]} 14. Qxd8 {[%emt 0:00:02]} ({White should try} 14. Be2) 14... Rfxd8 {[%emt 0:00:00]} 15. Ba4 {[%emt 0:00:10]} b5 {[%emt 0:00:00]} 16. Bb3 {[%emt 0:00:02]} Bxb3 {[%emt 0:00:00]} 17. axb3 {[%emt 0:00:03]} e6 {[%emt 0:00:00]} 18. Ne4 {[%emt 0:00:34]} (18. Kf1 $17) 18... Nxe4 $19 {[%emt 0:00:00]} 19. Bxg7 {[%emt 0:00:03]} Kxg7 {[%emt 0:00:00]} 20. Rxe4 {[%emt 0:00:01][%mdl 4096] Endgame KRR-KRR} Rd2 {[%emt 0:00:00]} 21. Rb1 {[%emt 0:00:08]} Rc8 {[%emt 0:00:00]} 22. Ree1 {[%emt 0:00:03]} Rcc2 {[%emt 0:00:00][%csl LRb2,LRf2]} 23. Ra1 $2 {[%emt 0:00:22] [#]} (23. Rf1) 23... Rxf2 {[%emt 0:00:00]} 24. Rxa6 {[%emt 0:00:30]} Rxg2+ {[%emt 0:00:00] Black mates.} 25. Kh1 {[%emt 0:00:03]} Rxh2+ {[%emt 0:00:00]} 26. Kg1 {[%emt 0:00:02]} Rcg2+ {[%emt 0:00:00]} 27. Kf1 {[%emt 0:00:01]} Rxb2 {[%emt 0:00:00][%cal Rh2h1]} 28. Ra3 {[%emt 0:00:15]} Rh1# {[%emt 0:00:00] Weighted Error Value: White=0.79/Black=0.06 (flawless)} 0-1

[Event "Romanian Team Blitz Open 2022"]
[Site "Sebes"]
[Date "2022.12.04"]
[Round "1.29"]
[White "Stanca, Adrian"]
[Black "Patrascu, Catalin-Lucian"]
[Result "1/2-1/2"]
[ECO "D11"]
[WhiteElo "2182"]
[BlackElo "2279"]
[Annotator "TA"]
[PlyCount "72"]
[EventDate "2022.12.04"]
[EventType "blitz"]
[EventCountry "ROU"]
[SourceTitle "playchess.com"]
[Source "ChessBase"]
[SourceQuality "1"]
[TimeControl "180+2"]

{[%evp 12,72,26,0,0,-3,9,8,6,15,17,-13,0,-24,0,-66,-65,-60,-67,-58,-54,-109,-102,-111,-102,-97,-100,-101,-101,-150,-108,-148,-138,-135,-54,-63,-72,-70,-49,-61,4,4,2,0,2,2,4,0,1,8,29,37,73,74,89,0,0,0,87,0,0,0,101]} 1. Nf3 {[%emt 0:00:02]} d5 {[%emt 0:00:02]} 2. g3 {[%emt 0:00:01]} Bg4 {[%emt 0:00:02]} 3. Bg2 {[%emt 0:00:00]} Nd7 {[%emt 0:00:01]} 4. d4 {[%emt 0:00:02]} e6 {[%emt 0:00:06]} 5. O-O {[%emt 0:00:03]} Ngf6 {[%emt 0:00:03]} 6. c4 {[%emt 0:00:04]} c6 {[%emt 0:00:01]} 7. Qb3 {[%emt 0:00:05]} Qb6 {[%emt 0:00:05] D11: Slav Defence: 3 Nf3 sidelines and 3...Nf6 4 e3 Bg4.} 8. c5 {[%emt 0:00:01]} Qxb3 {[%emt 0:00:05]} 9. axb3 {[%emt 0:00:02]} a6 {[%emt 0:00:16]} 10. Nc3 {[%emt 0:00:13]} Be7 {[%emt 0:00:04]} 11. Bf4 {[%emt 0:00:32]} h6 {[%emt 0:00:21]} 12. Rfe1 {[%emt 0:00:04]} O-O {[%emt 0:00:11] [#]} 13. Ne5 $146 {[%emt 0:00:22]} (13. h3 $11 Bf5 14. g4) ({Predecessor:} 13. Ra4 Rfc8 14. Rea1 Re8 15. Ne5 Bf5 16. Rb4 Nxe5 17. dxe5 Nd7 18. Rxb7 Nxc5 19. Rb6 {0-1 (42) Orantes Taboada,F (2221)-Alavi Moghaddam,S (2455) Chess.com INT 2021}) 13... Nxe5 $15 {[%emt 0:00:05]} 14. Bxe5 {[%emt 0:00:03]} Nd7 {[%emt 0:00:05] aiming for ...Nxe5.} 15. Bc7 {[%emt 0:00:07]} Rac8 {[%emt 0:00:10] Against e4} 16. Bf4 {[%emt 0:00:12]} ({Better is} 16. Ba5 $15) 16... e5 $1 $17 {[%emt 0:00:06]} 17. Bxe5 {[%emt 0:00:27]} Nxe5 {[%emt 0:00:02]} 18. dxe5 {[%emt 0:00:01]} Bxc5 {[%emt 0:00:04]} 19. h3 {[%emt 0:00:01]} Be6 {[%emt 0:00:05]} 20. e3 {[%emt 0:00:05]} (20. Red1 $142) 20... Rfd8 {[%emt 0:00:05]} 21. Na4 {[%emt 0:00:17]} Bb4 {[%emt 0:00:33]} 22. Red1 {[%emt 0:00:02] [#] Inhibits d4.} a5 {[%emt 0:00:23]} (22... d4 $1 $17 {Threatens to win with ...b5.} 23. Rxd4 Rxd4 24. exd4 Rd8) 23. Rac1 {[%emt 0:00:04]} d4 {[%emt 0:00:13]} 24. Rxd4 {[%emt 0:00:01]} Rxd4 {[%emt 0:00:01]} 25. exd4 {[%emt 0:00:02]} Bxb3 {[%emt 0:00:02]} ({Black should try} 25... Rd8 $15) 26. Nc5 $11 {[%emt 0:00:10]} Bxc5 {[%emt 0:00:16]} 27. Rxc5 {[%emt 0:00:01][%mdl 4096] Endgame KRB-KRB} Rd8 {[%emt 0:00:06]} 28. Rxa5 {[%emt 0:00:20]} Rxd4 {[%emt 0:00:02]} 29. Ra8+ {[%emt 0:00:02]} Kh7 {[%emt 0:00:01]} 30. Rb8 {[%emt 0:00:01]} Rd1+ {[%emt 0:00:18]} 31. Kh2 {[%emt 0:00:04] Strongly threatening Be4+.} Rd2 {[%emt 0:00:05]} 32. Rxb7 {[%emt 0:00:06]} Be6 {[%emt 0:00:03]} 33. Kg1 {[%emt 0:00:07]} (33. Bxc6 Rxf2+ 34. Kg1 Re2 $11) 33... Rd1+ $1 {[%emt 0:00:02]} 34. Kh2 {[%emt 0:00:04]} Rd2 {[%emt 0:00:01]} 35. Kg1 {[%emt 0:00:04]} ({Much worse is} 35. Bxc6 Rxf2+ 36. Kg1 Re2 $11) 35... Rd1+ $1 {[%emt 0:00:02]} 36. Kh2 {[%emt 0:00:02]} Rd2 {[%emt 0:00:02] Weighted Error Value: White=0.21 (precise) /Black=0.12 (very precise)} 1/2-1/2

[Event "Romanian Team Blitz Open 2022"]
[Site "Sebes"]
[Date "2022.12.04"]
[Round "1.30"]
[White "Creanga, Robert-Ionut"]
[Black "Coicev, Matei-Andrei"]
[Result "1/2-1/2"]
[ECO "E12"]
[WhiteElo "2190"]
[BlackElo "2009"]
[Annotator "TA"]
[PlyCount "96"]
[EventDate "2022.12.04"]
[EventType "blitz"]
[EventCountry "ROU"]
[SourceTitle "playchess.com"]
[Source "ChessBase"]
[SourceQuality "1"]
[TimeControl "180+2"]

{[%evp 10,96,41,-8,6,2,0,-17,-24,-33,-1,-49,-32,-25,-35,-91,-88,-89,-92,-112,-111,-107,-70,-71,46,-77,-60,-41,-48,-60,-57,-120,-105,-110,-113,-132,-41,-137,-46,-45,88,73,62,89,95,87,133,82,136,103,235,170,184,164,204,189,390,246,302,0,0,0,0,0,0,0,0,0,0,0,0,0,0,-83,-83,-187,-112,-111,-110,-183,-144,-170,-170,-144,-43,-127,0,-112,0]} 1. Nf3 {[%emt 0:00:01]} Nf6 {[%emt 0:00:01]} 2. c4 {[%emt 0:00:01]} e6 {[%emt 0:00:01]} 3. Nc3 {[%emt 0:00:03]} b6 {[%emt 0:00:02]} 4. d4 {[%emt 0:00:09]} Bb7 {[%emt 0:00:02]} 5. a3 {[%emt 0:00:01]} Be7 {[%emt 0:00:02]} 6. Bg5 {[%emt 0:00:05]} (6. d5 $14 {is more appropriate.}) 6... Ne4 {[%emt 0:00:05] E12: Queen's Indian: Unusual White 4th moves, 4 a3, 4 Nc3 Bb7 5 a3 and 4 Nc3 Bb7 .} 7. Bxe7 {[%emt 0:00:09]} Qxe7 {[%emt 0:00:04]} 8. Qc2 {[%emt 0:00:16]} Nxc3 {[%emt 0:00:02] The position is equal.} 9. Qxc3 {[%emt 0:00:02]} d6 {[%emt 0:00:07] [#]} 10. Qd3 $146 {[%emt 0:00:13]} (10. g3 $11) ({Predecessor:} 10. e3 O-O 11. Be2 Nd7 12. O-O Nf6 13. Rfd1 Ne4 14. Qc2 f5 15. d5 e5 16. Nd2 Nxd2 17. Qxd2 {½-½ (35) Smirnova,A (1964)-Borisov,G (1781) Uljanovsk 2008}) 10... O-O {[%emt 0:00:19]} 11. e4 {[%emt 0:00:20]} f5 {[%emt 0:00:47]} 12. e5 {[%emt 0:00:55]} (12. exf5 $15 Rxf5 13. Be2) 12... Nd7 $17 {[%emt 0:00:25]} 13. exd6 {[%emt 0:00:09]} cxd6 {[%emt 0:00:02]} 14. Be2 {[%emt 0:00:13]} e5 $1 {[%emt 0:00:12]} 15. Qc3 {[%emt 0:00:10]} exd4 {[%emt 0:00:15]} 16. Nxd4 {[%emt 0:00:01]} Nc5 {[%emt 0:00:18]} (16... Bxg2 $17 17. Rg1 Bb7) 17. O-O-O {[%emt 0:00:12]} (17. O-O $1 $14 {keeps the upper hand.}) 17... Ne4 {[%emt 0:00:02]} 18. Qe1 {[%emt 0:00:07]} (18. Qe3 $2 f4 19. Qf3 Ng3 $1 $19 {[%mdl 512]}) 18... Qg5+ {[%emt 0:00:10]} 19. Kb1 {[%emt 0:00:04] Threatens to win with Ne6.} Qxg2 {[%emt 0:00:09]} 20. Bf3 {[%emt 0:00:09]} (20. f3 $1 $15) 20... Qg6 {[%emt 0:00:20]} ({Don't do} 20... Qxf2 21. Qxf2 Nxf2 22. Bxb7 $14) 21. Rg1 {[%emt 0:00:05]} Qf7 {[%emt 0:00:01]} 22. Ka1 {[%emt 0:00:09]} Rae8 {[%emt 0:00:02]} (22... Qxc4 $17 {...Bd5 is the strong threat.} 23. Be2 Qf7) 23. Qf1 {[%emt 0:00:08]} (23. Bxe4 $1 $15 Rxe4 24. Qb4) 23... g6 {[%emt 0:00:04]} ({Better is} 23... Qf6 $17 24. Nb5 Re7) 24. Nb5 {[%emt 0:00:02][%csl LRa7,LRd6] Black must now prevent Bxe4.} a6 {[%emt 0:00:04]} (24... Re5 $15 {stays ahead.}) 25. Bxe4 $16 {[%emt 0:00:03]} axb5 {[%emt 0:00:16]} 26. Bxb7 {[%emt 0:00:02]} Qxb7 {[%emt 0:00:00]} 27. cxb5 {[%emt 0:00:01]} d5 {[%emt 0:00:00] [#]} (27... Rf6 $142) 28. Qd3 {[%emt 0:00:02]} (28. h4 $142 $1) 28... Rd8 {[%emt 0:00:00]} (28... Rf6 $142) 29. Qd4 {[%emt 0:00:01] White is more active.} Qe7 {[%emt 0:00:00]} (29... Rde8 $16) 30. Rge1 {[%emt 0:00:01]} Qd6 {[%emt 0:00:00]} 31. Rc1 {[%emt 0:00:02] Strongly threatening Rc6.} Rc8 {[%emt 0:00:00] Inhibits Rc6.} 32. h4 {[%emt 0:00:04]} Rc5 {[%emt 0:00:05]} (32... h5 {was worth a try.} 33. Ka2 f4 34. Rxc8 Rxc8) 33. a4 {[%emt 0:00:03] And now Rxc5 would win.} Rfc8 {[%emt 0:00:01]} 34. Rcd1 {[%emt 0:00:03]} (34. Rxc5 $18 bxc5 35. Qe5 Qxe5 36. Rxe5) 34... Rc4 $11 {[%emt 0:00:02]} 35. Qxd5+ {[%emt 0:00:01]} Qxd5 {[%emt 0:00:01]} 36. Rxd5 {[%emt 0:00:01] aiming for b3.} Rxa4+ {[%emt 0:00:01][%mdl 4096] Endgame KRR-KRR} 37. Kb1 {[%emt 0:00:01]} Rc7 {[%emt 0:00:06]} 38. Rd6 {[%emt 0:00:03]} Rxh4 {[%emt 0:00:02]} 39. Rxb6 {[%emt 0:00:01]} Rb4 {[%emt 0:00:02]} 40. Rc1 {[%emt 0:00:05]} Re7 {[%emt 0:00:03]} 41. Rb8+ {[%emt 0:00:02]} (41. Rc3 $11) 41... Kg7 $17 {[%emt 0:00:00]} 42. b6 {[%emt 0:00:01]} (42. Rc3 $17 {keeps fighting.}) 42... Re6 {[%emt 0:00:04]} (42... Kf6 $19 43. Rc6+ Kg5) 43. Rc7+ {[%emt 0:00:01] [#]} Kh6 $1 {[%emt 0:00:00]} ({Weaker is} 43... Kf6 44. f4 (44. Rxh7 Re2 $17) 44... Rexb6 45. Rxb6+ Rxb6 46. Rxh7 $15) 44. b7 {[%emt 0:00:03]} (44. Rh8 $17) 44... Re2 {[%emt 0:00:02][%csl LRb2,LRf2]} 45. Rh8 {[%emt 0:00:03]} Rexb2+ {[%emt 0:00:01]} 46. Kc1 {[%emt 0:00:01]} Rb1+ {[%emt 0:00:01]} ({Black should try} 46... Kg5 $1 $17 47. Rhxh7 Rxf2) 47. Kc2 {[%emt 0:00:01]} (47. Kd2 $15) 47... R1b2+ {[%emt 0:00:01]} 48. Kc1 $1 {[%emt 0:00:01]} Rb1+ {[%emt 0:00:01] Quite a comeback for White.   Weighted Error Value: White=0.42/Black=0.44} (48... Kg5 $17 49. Rhxh7 Rxf2) 1/2-1/2

[Event "Romanian Team Blitz Open 2022"]
[Site "Sebes"]
[Date "2022.12.04"]
[Round "1.32"]
[White "Prelipcean, Eric-Matei"]
[Black "Mainescu, Andrei-Cristian"]
[Result "1-0"]
[ECO "C67"]
[WhiteElo "1909"]
[BlackElo "1860"]
[Annotator "TA"]
[PlyCount "91"]
[EventDate "2022.12.04"]
[EventType "blitz"]
[EventCountry "ROU"]
[SourceTitle "playchess.com"]
[Source "ChessBase"]
[SourceQuality "1"]
[TimeControl "180+2"]

{[%evp 18,91,22,23,31,22,27,21,21,33,33,24,30,15,28,0,13,-1,32,0,2,0,9,0,8,0,0,0,26,20,21,8,4,0,47,46,50,47,49,27,27,27,58,28,30,28,60,65,120,75,148,134,173,178,406,395,381,364,1233,1212,923,1070,2576,1726,2921,2881,3156,2435,6114,9231,29972,29974,29985,29986,29989,29990]} 1. e4 {[%emt 0:00:02]} e5 {[%emt 0:00:20]} 2. Nf3 {[%emt 0:00:01]} Nc6 {[%emt 0:00:00]} 3. Bb5 {[%emt 0:00:01]} Nf6 {[%emt 0:00:02]} 4. O-O {[%emt 0:00:02][%cal Bh1f1,Bf1e1,Be1e5][%mdl 32]} Nxe4 {[%emt 0:00:05]} 5. Re1 {[%emt 0:00:01]} Nd6 {[%emt 0:00:02]} 6. Nxe5 {[%emt 0:00:02]} Nxe5 {[%emt 0:00:01]} 7. Rxe5+ {[%emt 0:00:01]} Be7 {[%emt 0:00:01]} 8. Bf1 {[%emt 0:00:01]} O-O {[%emt 0:00:05]} 9. d4 {[%emt 0:00:02]} Bf6 {[%emt 0:00:05]} 10. Re1 {[%emt 0:00:01]} Ne8 {[%emt 0:00:09][%cal Bd6e8,Be8c7,Bc7e6,Be6g7,Bg7f5][%mdl 32] C67: Ruy Lopez: Berlin Defence: 4 0-0 Nxe4.} 11. c3 {[%emt 0:00:02]} d5 {[%emt 0:00:01]} 12. Bf4 {[%emt 0:00:01] [#]} c6 $146 {[%emt 0:00:09] The position is equal.} ({Predecessor:} 12... Nd6 13. Bd3 Nf5 14. Nd2 Bg5 15. Qg4 Bxf4 16. Qxf4 Nd6 17. Nf3 h6 18. h4 c6 {1-0 (43) Deac,B (2385)-Parligras,M (2594) Bazna 2014}) 13. Nd2 {[%emt 0:00:01]} Bf5 {[%emt 0:00:19]} 14. Nf3 {[%emt 0:00:11]} Nc7 {[%emt 0:00:54]} 15. h3 {[%emt 0:00:03]} Re8 {[%emt 0:00:04]} 16. Qd2 {[%emt 0:00:09]} Ne6 {[%emt 0:00:07]} 17. Bg3 {[%emt 0:00:07]} Qd7 {[%emt 0:00:30]} 18. Bd3 {[%emt 0:00:01]} Bxd3 {[%emt 0:00:04]} 19. Qxd3 {[%emt 0:00:02]} g6 {[%emt 0:00:10]} 20. Re2 {[%emt 0:00:11]} Ng7 {[%emt 0:00:07]} 21. Ne5 {[%emt 0:00:07]} Bxe5 {[%emt 0:00:03]} 22. Bxe5 {[%emt 0:00:02]} Qf5 {[%emt 0:00:03]} 23. Qxf5 {[%emt 0:00:18]} Nxf5 {[%emt 0:00:01]} 24. Rae1 {[%emt 0:00:01]} Re6 {[%emt 0:00:03]} 25. Bf4 {[%emt 0:00:18]} Rae8 {[%emt 0:00:02]} (25... Ng7 $11 {is superior.}) 26. Rxe6 $14 {[%emt 0:00:02]} Rxe6 {[%emt 0:00:01]} 27. Rxe6 {[%emt 0:00:02]} fxe6 {[%emt 0:00:01][%mdl 4096] Endgame KB-KN} 28. f3 {[%emt 0:00:14]} Kf7 {[%emt 0:00:04]} 29. Kf2 {[%emt 0:00:01]} Ne7 {[%emt 0:00:13]} 30. g4 {[%emt 0:00:02]} Nc8 {[%emt 0:00:02]} 31. Bc7 {[%emt 0:00:07]} a6 {[%emt 0:00:05]} 32. Ke3 {[%emt 0:00:03]} h6 {[%emt 0:00:03]} (32... Ke7 $14) 33. h4 {[%emt 0:00:25]} Na7 {[%emt 0:00:03]} (33... Ke7 $142) 34. a4 {[%emt 0:00:12][%cal Ba2a4,Ba4a5][%mdl 32]} Nc8 {[%emt 0:00:04] [#]} 35. Kf4 $1 {[%emt 0:00:06]} Ne7 $2 {[%emt 0:00:04]} (35... b6 {might work better.} 36. Ke5 Ke7) 36. Ke5 $18 {[%emt 0:00:07]} Nc8 {[%emt 0:00:00]} 37. a5 {[%emt 0:00:13] Against b6} Ke7 $2 {[%emt 0:00:02]} (37... h5 38. Bd8 Ke8) 38. Bb6 {[%emt 0:00:12]} Kf7 {[%emt 0:00:02]} 39. Bc5 {[%emt 0:00:02] [#] aiming for f4.} h5 {[%emt 0:00:04]} 40. Kf4 {[%emt 0:00:04]} Kf6 {[%emt 0:00:03]} 41. b4 {[%emt 0:00:09]} hxg4 {[%emt 0:00:02]} 42. fxg4 {[%emt 0:00:01][%cal Bf3g4,Bg4h5,Bh5h6][%mdl 32]} Kf7 {[%emt 0:00:01]} 43. Kg5 {[%emt 0:00:06]} Kg7 {[%emt 0:00:01]} 44. h5 {[%emt 0:00:01] White mates.} gxh5 {[%emt 0:00:01]} 45. gxh5 {[%emt 0:00:00]} Kh7 {[%emt 0:00:01]} 46. h6 {[%emt 0:00:02] Weighted Error Value: White=0.10 (very precise) /Black=0.44} 1-0